[Event "FIDE Women Candidates 2026"]
[White "Lagno,Kateryna"]
[Black "Goryachkina,Aleksandra"]
[Site "Agios Georgios Pegeia"]
[Round "8.3"]
[Annotator "RC"]
[Result "1-0"]
[Date "2026.04.07"]
[WhiteElo "2508"]
[BlackElo "2534"]
[PlyCount "131"]
[TimeControl "60"]

1. e4 {[%emt 0:0:4]} e5 {[%emt 0:0:6]} 2. Nf3 {[%emt 0:0:12]} Nc6 {[%emt 0:0:6]} 3. d4 {[%emt 0:0:14]} exd4 {[%emt 0:0:10]} 4. Nxd4 {[%emt 0:0:5]} Nf6 {[%emt 0:0:11]} 5. Nxc6 {[%emt 0:0:18]} bxc6 {[%emt 0:0:5]} 6. e5 {[%emt 0:0:11]} Qe7 {[%emt 0:0:21]} 7. Qe2 {[%emt 0:0:6]} Nd5 {[%emt 0:0:5]} 8. g3 {[%emt 0:0:20]} g6 {[%emt 0:1:43]} 9. Bg2 {[%emt 0:1:2]} Bg7 {[%emt 0:2:13]} 10. O-O {[%emt 0:0:21]} O-O {[%emt 0:1:48]} 11. Re1 {[%emt 0:0:38]} Re8 {[%emt 0:10:11]} 12. c4 {[%emt 0:0:42]} Ba6 {[%emt 0:0:40]} 13. Qc2 {[%emt 0:0:34]} Qc5 {[%emt 0:1:39]} 14. Nd2 {[%emt 0:1:1]} Nb6 {[%emt 0:9:6]} 15. b3 {[%emt 0:3:52]} f5 {[%emt 0:6:31]} 16. Nf3 {[%emt 0:6:12]} Rab8 {[%emt 0:3:36]} 17. Be3 {[%emt 0:3:59]} Qf8 {[%emt 0:3:42]} 18. Rad1 {[%emt 0:1:51]} Bb7 {[%emt 0:3:45]} 19. Qd2 {[%emt 0:12:22]} c5 {[%emt 0:5:22]} 20. Qa5 {[%emt 0:7:13]} Bxf3 {[%emt 0:8:54]} 21. Bxf3 {[%emt 0:0:10]} Bxe5 {[%emt 0:1:18]} 22. Bxc5 {[%emt 0:13:17]} d6 {[%emt 0:2:37]} 23. Ba3 {[%emt 0:4:39]} c5 {[%emt 0:4:24]} 24. Qxa7 {[%emt 0:1:5]} f4 {[%emt 0:0:26]} 25. Kg2 {[%emt 0:12:7]} Qf6 {[%emt 0:6:14]} 26. Bc1 {[%emt 0:4:39]} Rf8 {[%emt 0:7:16]} 27. Rf1 {[%emt 0:9:17]} d5 {[%emt 0:2:46]} 28. cxd5 {[%emt 0:3:15]} Ra8 {[%emt 0:5:39]} 29. Qb7 {[%emt 0:0:4]} Rxa2 {[%emt 0:0:15]} 30. Rd2 {[%emt 0:0:46]} Raa8 {[%emt 0:8:58]} 31. d6 {[%emt 0:1:39]} Rab8 {[%emt 0:0:58]} 32. Qe7 {[%emt 0:1:29]} Rbd8 {[%emt 0:0:40]} 33. Re2 {[%emt 0:4:9]} Bxd6 {[%emt 0:1:24]} 34. Qxf6 {[%emt 0:5:25]} Rxf6 {[%emt 0:0:1]} 35. Rd1 {[%emt 0:0:15]} Rff8 {[%emt 0:1:53]} 36. Re6 {[%emt 0:0:45]} Nc8 {[%emt 0:1:41]} 37. Bb2 {[%emt 0:0:10]} Rf7 {[%emt 0:1:24]} 38. Bd5 {[%emt 0:2:47]} Kf8 {[%emt 0:0:20]} 39. Bc4 {[%emt 0:0:52]} Bc7 {[%emt 0:0:32]} 40. Rxd8+ {[%emt 0:0:53]} Bxd8 {[%emt 0:0:1]} 41. Re5 {[%emt 0:9:9]} Rc7 {[%emt 0:4:50]} 42. Re4 {[%emt 0:1:43]} g5 {[%emt 0:1:45]} 43. Be5 {[%emt 0:2:48]} Re7 {[%emt 0:2:37]} 44. gxf4 {[%emt 0:6:32]} Bc7 {[%emt 0:0:18]} 45. Bd3 {[%emt 0:2:51]} g4 {[%emt 0:5:33]} 46. Kg3 {[%emt 0:2:31]} Na7 {[%emt 0:0:58]} 47. Kxg4 {[%emt 0:1:8]} Nc6 {[%emt 0:1:29]} 48. Bf6 {[%emt 0:0:23]} Rd7 {[%emt 0:1:18]} 49. Bc4 {[%emt 0:1:15]} Bd8 {[%emt 0:4:46]} 50. Bg5 {[%emt 0:0:15]} Rd6 {[%emt 0:1:43]} 51. Kh5 {[%emt 0:0:22]} Bf6 {[%emt 0:0:37]} 52. Re6 {[%emt 0:1:38]} Rxe6 {[%emt 0:0:9]} 53. Bxe6 {[%emt 0:0:1]} Bg7 {[%emt 0:0:4]} 54. f5 {[%emt 0:0:36]} Nd4 {[%emt 0:1:12]} 55. Bh6 {[%emt 0:1:50]} Nf3 {[%emt 0:1:7]} 56. h3 {[%emt 0:0:10]} Nd4 {[%emt 0:0:26]} 57. Bg5 {[%emt 0:3:47]} Ke8 {[%emt 0:1:3]} 58. Bg8 {[%emt 0:0:11]} Nxf5 {[%emt 0:2:25]} 59. Bxh7 {[%emt 0:0:4]} Nd6 {[%emt 0:0:32]} 60. Bd3 {[%emt 0:0:58]} Bd4 {[%emt 0:0:30]} 61. Be3 {[%emt 0:0:12]} Nb7 {[%emt 0:1:36]} 62. Bxd4 {[%emt 0:0:17]} cxd4 {[%emt 0:0:1]} 63. b4 {[%emt 0:0:4]} Nd8 {[%emt 0:0:17]} 64. Kg5 {[%emt 0:0:6]} Ke7 {[%emt 0:0:41]} 65. Kf5 {[%emt 0:0:26]} Ne6 {[%emt 0:1:6]} 66. h4 {[%emt 0:0:9]} 1-0

[Event "FIDE Women Candidates 2026"]
[White "Tan,Zhongyi"]
[Black "Zhu,Jiner"]
[Site "Agios Georgios Pegeia"]
[Round "8.4"]
[Annotator "RC"]
[Result "0-1"]
[Date "2026.04.07"]
[WhiteElo "2535"]
[BlackElo "2578"]
[PlyCount "154"]
[TimeControl "60"]

1. d4 {[%emt 0:0:4]} Nf6 {[%emt 0:0:12]} 2. c4 {[%emt 0:0:5]} e6 {[%emt 0:0:5]} 3. Nc3 {[%emt 0:0:5]} Bb4 {[%emt 0:0:11]} 4. Qc2 {[%emt 0:0:8]} O-O {[%emt 0:0:21]} 5. a3 {[%emt 0:0:8]} Bxc3+ {[%emt 0:0:14]} 6. Qxc3 {[%emt 0:0:6]} b6 {[%emt 0:1:15]} 7. Bg5 {[%emt 0:0:38]} Bb7 {[%emt 0:1:12]} 8. e3 {[%emt 0:0:8]} d6 {[%emt 0:1:33]} 9. Ne2 {[%emt 0:0:9]} Nbd7 {[%emt 0:1:11]} 10. Rd1 {[%emt 0:0:10]} a5 {[%emt 0:7:57]} 11. Qc2 {[%emt 0:1:2]} Qe7 {[%emt 0:23:56]} 12. Nc3 {[%emt 0:0:29]} h6 {[%emt 0:0:35]} 13. Bh4 {[%emt 0:0:8]} Rfd8 {[%emt 0:4:34]} 14. f3 {[%emt 0:1:54]} c5 {[%emt 0:2:35]} 15. Be2 {[%emt 0:4:11]} Rac8 {[%emt 0:2:34]} 16. O-O {[%emt 0:3:57]} cxd4 {[%emt 0:4:56]} 17. exd4 {[%emt 0:1:5]} Ba6 {[%emt 0:0:42]} 18. Qb3 {[%emt 0:8:23]} d5 {[%emt 0:3:25]} 19. Nb5 {[%emt 0:0:35]} Nf8 {[%emt 0:7:36]} 20. Rfe1 {[%emt 0:4:30]} Ng6 {[%emt 0:4:54]} 21. Bg3 {[%emt 0:0:7]} dxc4 {[%emt 0:3:22]} 22. Bxc4 {[%emt 0:0:22]} Nh5 {[%emt 0:0:55]} 23. Bf2 {[%emt 0:20:44]} Nhf4 {[%emt 0:1:15]} 24. Bf1 {[%emt 0:0:55]} Qg5 {[%emt 0:2:46]} 25. Be3 {[%emt 0:4:22]} Bxb5 {[%emt 0:8:29]} 26. Qxb5 {[%emt 0:0:34]} Qxb5 {[%emt 0:0:27]} 27. Bxb5 {[%emt 0:0:6]} Rc2 {[%emt 0:0:5]} 28. Rd2 {[%emt 0:3:22]} Rxd2 {[%emt 0:0:7]} 29. Bxd2 {[%emt 0:0:3]} Rxd4 {[%emt 0:0:27]} 30. Be3 {[%emt 0:0:6]} Rd6 {[%emt 0:0:6]} 31. Rc1 {[%emt 0:0:32]} Nd5 {[%emt 0:0:53]} 32. Bf2 {[%emt 0:1:8]} Nge7 {[%emt 0:0:25]} 33. a4 {[%emt 0:2:8]} f6 {[%emt 0:1:51]} 34. Rd1 {[%emt 0:4:44]} Kf7 {[%emt 0:0:27]} 35. h4 {[%emt 0:0:39]} h5 {[%emt 0:0:54]} 36. Kh2 {[%emt 0:2:31]} Ng6 {[%emt 0:3:41]} 37. g4 {[%emt 0:6:13]} hxg4 {[%emt 0:2:3]} 38. fxg4 {[%emt 0:0:4]} Ne5 {[%emt 0:0:45]} 39. Kg3 {[%emt 0:0:51]} Ke7 {[%emt 0:1:52]} 40. h5 {[%emt 0:1:20]} Rd8 {[%emt 0:2:21]} 41. Rc1 {[%emt 0:30:15]} Rb8 {[%emt 0:33:48]} 42. Kh3 {[%emt 0:5:43]} Nf7 {[%emt 0:0:0]} 43. Rc6 {[%emt 0:0:0]} Nd6 {[%emt 0:0:0]} 44. Bg3 {[%emt 0:0:0]} e5 {[%emt 0:0:0]} 45. Ba6 {[%emt 0:0:0]} Ne4 {[%emt 0:0:0]} 46. Bd3 {[%emt 0:0:0]} Ng5+ {[%emt 0:0:0]} 47. Kg2 {[%emt 0:0:0]} Ne3+ {[%emt 0:0:0]} 48. Kf2 {[%emt 0:2:43]} Nxg4+ {[%emt 0:0:0]} 49. Kf1 {[%emt 0:1:47]} Ne6 {[%emt 0:0:0]} 50. Be4 {[%emt 0:1:20]} f5 {[%emt 0:0:0]} 51. Bb1 {[%emt 0:0:7]} Kd7 {[%emt 0:0:0]} 52. Rc3 {[%emt 0:0:26]} f4 {[%emt 0:0:0]} 53. Bh4 {[%emt 0:2:28]} Ne3+ {[%emt 0:0:0]} 54. Ke2 {[%emt 0:1:7]} Nd4+ {[%emt 0:0:14]} 55. Kd3 {[%emt 0:0:6]} Ng4 {[%emt 0:2:7]} 56. Rc1 {[%emt 0:2:13]} Nf3 {[%emt 0:0:59]} 57. Be1 {[%emt 0:1:58]} Nxe1+ {[%emt 0:0:37]} 58. Rxe1 {[%emt 0:0:3]} Ke6 {[%emt 0:1:3]} 59. Rg1 {[%emt 0:0:25]} Nf6 {[%emt 0:0:17]} 60. Rg5 {[%emt 0:1:28]} Rd8+ {[%emt 0:2:17]} 61. Ke2 {[%emt 0:0:20]} Rd4 {[%emt 0:0:33]} 62. Ba2+ {[%emt 0:0:37]} Kd6 {[%emt 0:0:4]} 63. Rg6 {[%emt 0:0:52]} e4 {[%emt 0:2:7]} 64. h6 {[%emt 0:2:31]} f3+ {[%emt 0:0:5]} 65. Kf2 {[%emt 0:0:28]} Rd2+ {[%emt 0:0:8]} 66. Kg1 {[%emt 0:0:8]} Rd1+ {[%emt 0:5:2]} 67. Kf2 {[%emt 0:0:9]} Rd2+ {[%emt 0:0:28]} 68. Kg1 {[%emt 0:0:5]} gxh6 {[%emt 0:0:46]} 69. Rxf6+ {[%emt 0:0:5]} Kc5 {[%emt 0:0:19]} 70. Kf1 {[%emt 0:11:48]} Rxb2 {[%emt 0:0:23]} 71. Bf7 {[%emt 0:0:5]} Kd4 {[%emt 0:0:13]} 72. Rf5 {[%emt 0:2:9]} Ke3 {[%emt 0:0:24]} 73. Kg1 {[%emt 0:0:3]} Rg2+ {[%emt 0:0:21]} 74. Kh1 {[%emt 0:0:13]} Rg5 {[%emt 0:1:12]} 75. Rf6 {[%emt 0:0:14]} Kf2 {[%emt 0:0:21]} 76. Rxh6 {[%emt 0:4:2]} e3 {[%emt 0:0:8]} 77. Rh2+ {[%emt 0:1:19]} Rg2 {[%emt 0:0:6]} 0-1

[Event "FIDE Women Candidates 2026"]
[White "Vaishali,Rameshbabu"]
[Black "Divya Deshmukh"]
[Site "Agios Georgios Pegeia"]
[Round "9.1"]
[Annotator "RC"]
[Result "1-0"]
[Date "2026.04.08"]
[WhiteElo "2470"]
[BlackElo "2497"]
[PlyCount "61"]
[TimeControl "60"]

1. Nf3 {[%emt 0:0:22]} d5 {[%emt 0:0:42]} 2. b3 {[%emt 0:0:10]} Nf6 {[%emt 0:2:36]} 3. Bb2 {[%emt 0:0:7]} e6 {[%emt 0:0:7]} 4. c4 {[%emt 0:0:15]} Bd6 {[%emt 0:1:24]} 5. g3 {[%emt 0:0:29]} O-O {[%emt 0:7:13]} 6. Bg2 {[%emt 0:0:5]} c6 {[%emt 0:0:18]} 7. O-O {[%emt 0:0:25]} Nbd7 {[%emt 0:0:26]} 8. d4 {[%emt 0:0:15]} a5 {[%emt 0:1:59]} 9. Nc3 {[%emt 0:0:58]} Ne4 {[%emt 0:1:19]} 10. Nxe4 {[%emt 0:13:10]} dxe4 {[%emt 0:0:3]} 11. Ne5 {[%emt 0:0:40]} f5 {[%emt 0:0:13]} 12. f4 {[%emt 0:4:57]} Nf6 {[%emt 0:26:26]} 13. e3 {[%emt 0:4:28]} Qe8 {[%emt 0:3:25]} 14. h3 {[%emt 0:6:14]} b5 {[%emt 0:3:19]} 15. Rf2 {[%emt 0:6:57]} Ba6 {[%emt 0:9:15]} 16. Rc1 {[%emt 0:4:38]} bxc4 {[%emt 0:5:9]} 17. bxc4 {[%emt 0:2:32]} Nd7 {[%emt 0:1:39]} 18. Nxc6 {[%emt 0:14:0]} Rc8 {[%emt 0:20:18]} 19. d5 {[%emt 0:12:24]} Nc5 {[%emt 0:0:41]} 20. Qd4 {[%emt 0:2:38]} Rf6 {[%emt 0:7:48]} 21. Rd2 {[%emt 0:3:40]} Rg6 {[%emt 0:1:55]} 22. Kh2 {[%emt 0:1:8]} Nd3 {[%emt 0:1:14]} 23. Rxd3 {[%emt 0:0:49]} exd3 {[%emt 0:0:1]} 24. c5 {[%emt 0:0:30]} Rxc6 {[%emt 0:3:6]} 25. dxc6 {[%emt 0:0:27]} Bc7 {[%emt 0:0:0]} 26. Qd7 {[%emt 0:1:53]} Qb8 {[%emt 0:0:16]} 27. Be5 {[%emt 0:3:7]} Bxe5 {[%emt 0:0:30]} 28. Rb1 {[%emt 0:0:33]} Qf8 {[%emt 0:2:32]} 29. fxe5 {[%emt 0:0:9]} h5 {[%emt 0:0:23]} 30. Qd6 {[%emt 0:0:53]} Qf7 {[%emt 0:0:40]} 31. Rb7 {[%emt 0:3:39]} 1-0

[Event "FIDE Women Candidates 2026"]
[White "Zhu,Jiner"]
[Black "Lagno,Kateryna"]
[Site "Agios Georgios Pegeia"]
[Round "9.2"]
[Annotator "RC"]
[Result "1-0"]
[Date "2026.04.08"]
[WhiteElo "2578"]
[BlackElo "2508"]
[PlyCount "91"]
[TimeControl "60"]

1. Nf3 {[%emt 0:0:6]} d5 {[%emt 0:0:12]} 2. e3 {[%emt 0:0:10]} Nf6 {[%emt 0:0:26]} 3. b3 {[%emt 0:0:8]} c5 {[%emt 0:1:10]} 4. Bb2 {[%emt 0:0:48]} e6 {[%emt 0:0:18]} 5. Be2 {[%emt 0:0:21]} Nc6 {[%emt 0:0:23]} 6. O-O {[%emt 0:1:12]} Bd6 {[%emt 0:1:11]} 7. d4 {[%emt 0:0:30]} b6 {[%emt 0:4:59]} 8. c4 {[%emt 0:14:35]} Bb7 {[%emt 0:2:40]} 9. cxd5 {[%emt 0:3:46]} exd5 {[%emt 0:0:10]} 10. Nc3 {[%emt 0:1:13]} O-O {[%emt 0:1:18]} 11. Rc1 {[%emt 0:0:37]} Re8 {[%emt 0:5:57]} 12. Nb5 {[%emt 0:3:38]} Bf8 {[%emt 0:6:43]} 13. dxc5 {[%emt 0:1:25]} bxc5 {[%emt 0:0:9]} 14. Bxf6 {[%emt 0:0:12]} gxf6 {[%emt 0:0:24]} 15. Bd3 {[%emt 0:4:21]} Ne5 {[%emt 0:32:56]} 16. Re1 {[%emt 0:14:11]} Qd7 {[%emt 0:5:26]} 17. Nc3 {[%emt 0:3:35]} Qg4 {[%emt 0:12:7]} 18. Nxe5 {[%emt 0:19:35]} Qxd1 {[%emt 0:0:5]} 19. Rexd1 {[%emt 0:0:5]} fxe5 {[%emt 0:2:26]} 20. e4 {[%emt 0:0:11]} dxe4 {[%emt 0:3:13]} 21. Bxe4 {[%emt 0:1:24]} Bxe4 {[%emt 0:0:17]} 22. Nxe4 {[%emt 0:0:5]} Red8 {[%emt 0:0:5]} 23. Kf1 {[%emt 0:17:33]} Rxd1+ {[%emt 0:3:59]} 24. Rxd1 {[%emt 0:0:5]} a5 {[%emt 0:0:2]} 25. Rd5 {[%emt 0:5:16]} a4 {[%emt 0:0:19]} 26. Rxe5 {[%emt 0:0:18]} axb3 {[%emt 0:0:37]} 27. axb3 {[%emt 0:0:4]} Rb8 {[%emt 0:5:13]} 28. Rg5+ {[%emt 0:0:24]} Kh8 {[%emt 0:0:10]} 29. Rg3 {[%emt 0:0:5]} h6 {[%emt 0:1:53]} 30. Ke2 {[%emt 0:1:5]} Rb4 {[%emt 0:1:8]} 31. Nd2 {[%emt 0:0:41]} Bd6 {[%emt 0:0:53]} 32. Rd3 {[%emt 0:3:19]} Be5 {[%emt 0:0:38]} 33. Nc4 {[%emt 0:0:30]} Bg7 {[%emt 0:3:58]} 34. Nd6 {[%emt 0:0:55]} Kg8 {[%emt 0:0:31]} 35. Rg3 {[%emt 0:1:32]} Kh7 {[%emt 0:3:1]} 36. Nxf7 {[%emt 0:1:38]} Rb6 {[%emt 0:0:5]} 37. f4 {[%emt 0:1:9]} Re6+ {[%emt 0:2:7]} 38. Re3 {[%emt 0:1:38]} Rf6 {[%emt 0:0:6]} 39. Nd8 {[%emt 0:0:17]} Rxf4 {[%emt 0:0:34]} 40. Re7 {[%emt 0:0:23]} Rb4 {[%emt 0:1:57]} 41. Ne6 {[%emt 0:4:25]} Kg6 {[%emt 0:1:34]} 42. Nxg7 {[%emt 0:0:29]} Rxb3 {[%emt 0:1:9]} 43. Ne8 {[%emt 0:0:40]} c4 {[%emt 0:0:23]} 44. Rg7+ {[%emt 0:0:40]} Kf5 {[%emt 0:0:8]} 45. Nd6+ {[%emt 0:0:5]} Kf6 {[%emt 0:0:6]} 46. Rc7 {[%emt 0:0:10]} 1-0

[Event "FIDE Women Candidates 2026"]
[White "Tan,Zhongyi"]
[Black "Muzychuk,Anna"]
[Site "Agios Georgios Pegeia"]
[Round "9.3"]
[Annotator "RC"]
[Result "1/2-1/2"]
[Date "2026.04.08"]
[WhiteElo "2535"]
[BlackElo "2522"]
[PlyCount "112"]
[TimeControl "60"]

1. d4 {[%emt 0:0:4]} Nf6 {[%emt 0:0:7]} 2. c4 {[%emt 0:0:6]} g6 {[%emt 0:0:4]} 3. Nc3 {[%emt 0:0:48]} d5 {[%emt 0:0:6]} 4. Bg5 {[%emt 0:2:51]} Ne4 {[%emt 0:0:16]} 5. Bh4 {[%emt 0:1:5]} Nxc3 {[%emt 0:4:13]} 6. bxc3 {[%emt 0:0:7]} c5 {[%emt 0:0:31]} 7. e3 {[%emt 0:1:32]} Bg7 {[%emt 0:0:20]} 8. cxd5 {[%emt 0:1:12]} Qxd5 {[%emt 0:0:9]} 9. Qf3 {[%emt 0:3:29]} Qxf3 {[%emt 0:15:57]} 10. Nxf3 {[%emt 0:0:8]} Nc6 {[%emt 0:0:12]} 11. Bb5 {[%emt 0:0:37]} Bd7 {[%emt 0:4:24]} 12. O-O {[%emt 0:0:28]} a6 {[%emt 0:5:31]} 13. Bd3 {[%emt 0:1:23]} cxd4 {[%emt 0:1:58]} 14. exd4 {[%emt 0:1:33]} O-O {[%emt 0:4:49]} 15. Rfe1 {[%emt 0:6:45]} Rfe8 {[%emt 0:7:48]} 16. Rab1 {[%emt 0:1:57]} b5 {[%emt 0:0:31]} 17. d5 {[%emt 0:3:32]} Na5 {[%emt 0:1:1]} 18. Ne5 {[%emt 0:3:16]} Bxe5 {[%emt 0:7:0]} 19. Rxe5 {[%emt 0:0:6]} f6 {[%emt 0:0:17]} 20. Re3 {[%emt 0:0:5]} Kf7 {[%emt 0:9:51]} 21. f3 {[%emt 0:3:58]} Rac8 {[%emt 0:0:45]} 22. Rb4 {[%emt 0:0:17]} Nb7 {[%emt 0:6:1]} 23. Be1 {[%emt 0:1:37]} Nd6 {[%emt 0:1:47]} 24. g4 {[%emt 0:1:27]} Rc5 {[%emt 0:7:42]} 25. Rd4 {[%emt 0:0:7]} Bc8 {[%emt 0:0:33]} 26. Bc2 {[%emt 0:2:46]} Nc4 {[%emt 0:2:37]} 27. Red3 {[%emt 0:0:46]} Rd8 {[%emt 0:2:40]} 28. Bb3 {[%emt 0:0:44]} Bb7 {[%emt 0:1:2]} 29. f4 {[%emt 0:8:21]} Rcxd5 {[%emt 0:3:18]} 30. Rxd5 {[%emt 0:0:14]} Bxd5 {[%emt 0:1:5]} 31. g5 {[%emt 0:3:3]} Rd7 {[%emt 0:2:5]} 32. Bf2 {[%emt 0:18:13]} Ke6 {[%emt 0:2:51]} 33. Bxc4 {[%emt 0:6:6]} bxc4 {[%emt 0:0:26]} 34. Rh3 {[%emt 0:0:23]} Rb7 {[%emt 0:6:51]} 35. Bc5 {[%emt 0:0:30]} Kf5 {[%emt 0:1:9]} 36. Rxh7 {[%emt 0:0:32]} Kxf4 {[%emt 0:1:0]} 37. Rxe7 {[%emt 0:3:7]} Rb1+ {[%emt 0:0:13]} 38. Kf2 {[%emt 0:0:4]} Kxg5 {[%emt 0:0:37]} 39. Re1 {[%emt 0:2:42]} Rxe1 {[%emt 0:1:37]} 40. Kxe1 {[%emt 0:0:6]} Kf4 {[%emt 0:0:12]} 41. Ke2 {[%emt 0:31:42]} Bf3+ {[%emt 0:30:31]} 42. Kd2 {[%emt 0:1:39]} Be4 {[%emt 0:0:0]} 43. a4 {[%emt 0:0:0]} Kf3 {[%emt 0:0:0]} 44. a5 {[%emt 0:0:0]} f5 {[%emt 0:0:0]} 45. h4 {[%emt 0:0:0]} Kg3 {[%emt 0:0:0]} 46. Be7 {[%emt 0:0:0]} f4 {[%emt 0:0:0]} 47. Bd6 {[%emt 0:0:0]} Bd3 {[%emt 0:0:0]} 48. Ke1 {[%emt 0:0:0]} Kf3 {[%emt 0:0:0]} 49. Kd2 {[%emt 0:0:0]} Kg4 {[%emt 0:0:0]} 50. Bc7 {[%emt 0:0:0]} f3 {[%emt 0:0:0]} 51. Ke3 {[%emt 0:0:0]} Be2 {[%emt 0:0:0]} 52. Kf2 {[%emt 0:0:0]} Kxh4 {[%emt 0:0:0]} 53. Bd6 {[%emt 0:0:0]} Kg4 {[%emt 0:0:0]} 54. Bc7 {[%emt 0:0:0]} Kf5 {[%emt 0:0:0]} 55. Bd6 {[%emt 0:0:0]} Ke4 {[%emt 0:0:0]} 56. Bc7 {[%emt 0:0:0]} g5 {[%emt 0:0:0]} 1/2-1/2

[Event "FIDE Women Candidates 2026"]
[White "Goryachkina,Aleksandra"]
[Black "Assaubayeva,Bibisara"]
[Site "Agios Georgios Pegeia"]
[Round "9.4"]
[Annotator "RC"]
[Result "1/2-1/2"]
[Date "2026.04.08"]
[WhiteElo "2534"]
[BlackElo "2516"]
[PlyCount "74"]
[TimeControl "60"]

1. e4 {[%emt 0:0:5]} c5 {[%emt 0:0:5]} 2. Nf3 {[%emt 0:0:5]} Nc6 {[%emt 0:0:7]} 3. Bb5 {[%emt 0:0:5]} Nd4 {[%emt 0:0:7]} 4. Nxd4 {[%emt 0:5:39]} cxd4 {[%emt 0:0:37]} 5. O-O {[%emt 0:0:29]} a6 {[%emt 0:0:22]} 6. Bd3 {[%emt 0:4:35]} g6 {[%emt 0:0:23]} 7. c3 {[%emt 0:4:13]} Bg7 {[%emt 0:0:22]} 8. Na3 {[%emt 0:1:21]} d5 {[%emt 0:0:25]} 9. exd5 {[%emt 0:7:45]} Qxd5 {[%emt 0:1:53]} 10. Qb3 {[%emt 0:0:53]} Qd8 {[%emt 0:14:58]} 11. Be4 {[%emt 0:3:17]} Qc7 {[%emt 0:10:25]} 12. cxd4 {[%emt 0:7:40]} Nf6 {[%emt 0:1:7]} 13. d3 {[%emt 0:0:49]} O-O {[%emt 0:3:31]} 14. Be3 {[%emt 0:1:7]} Ng4 {[%emt 0:10:54]} 15. g3 {[%emt 0:0:12]} Qa5 {[%emt 0:0:20]} 16. Qd5 {[%emt 0:7:56]} Qxd5 {[%emt 0:3:24]} 17. Bxd5 {[%emt 0:0:2]} Rd8 {[%emt 0:0:14]} 18. Bg2 {[%emt 0:22:41]} Bxd4 {[%emt 0:1:44]} 19. Bxd4 {[%emt 0:0:27]} Rxd4 {[%emt 0:0:6]} 20. Nc4 {[%emt 0:1:17]} Be6 {[%emt 0:4:19]} 21. h3 {[%emt 0:6:31]} Nf6 {[%emt 0:2:19]} 22. Bxb7 {[%emt 0:1:11]} Ra7 {[%emt 0:0:14]} 23. Bg2 {[%emt 0:1:33]} Rxd3 {[%emt 0:0:43]} 24. Ne3 {[%emt 0:4:8]} Rd2 {[%emt 0:1:20]} 25. b3 {[%emt 0:0:24]} a5 {[%emt 0:1:33]} 26. Rfd1 {[%emt 0:0:48]} Rb2 {[%emt 0:11:32]} 27. Rd8+ {[%emt 0:1:39]} Kg7 {[%emt 0:0:7]} 28. Nd1 {[%emt 0:0:31]} Rc2 {[%emt 0:0:54]} 29. Ne3 {[%emt 0:0:5]} Rc3 {[%emt 0:10:43]} 30. Rd4 {[%emt 0:0:22]} Rac7 {[%emt 0:2:5]} 31. Rad1 {[%emt 0:0:42]} h5 {[%emt 0:0:34]} 32. Kh2 {[%emt 0:1:18]} R7c5 {[%emt 0:2:20]} 33. R1d3 {[%emt 0:2:29]} Rc1 {[%emt 0:0:19]} 34. Rd1 {[%emt 0:0:23]} R1c3 {[%emt 0:0:5]} 35. R1d3 {[%emt 0:0:2]} Rc1 {[%emt 0:0:5]} 36. Rd1 {[%emt 0:0:4]} R1c3 {[%emt 0:0:7]} 37. R1d3 {[%emt 0:0:4]} Rc1 {[%emt 0:0:17]} 1/2-1/2

[Event "FIDE Women Candidates 2026"]
[White "Muzychuk,Anna"]
[Black "Vaishali,Rameshbabu"]
[Site "Agios Georgios Pegeia"]
[Round "10.1"]
[Annotator "RC"]
[Result "1/2-1/2"]
[Date "2026.04.09"]
[WhiteElo "2522"]
[BlackElo "2470"]
[PlyCount "84"]
[TimeControl "60"]

1. e4 {[%emt 0:0:3]} e5 {[%emt 0:0:24]} 2. Nf3 {[%emt 0:0:6]} Nc6 {[%emt 0:0:5]} 3. Bc4 {[%emt 0:0:7]} Nf6 {[%emt 0:0:8]} 4. d3 {[%emt 0:0:7]} h6 {[%emt 0:0:11]} 5. O-O {[%emt 0:0:16]} d6 {[%emt 0:0:25]} 6. Re1 {[%emt 0:0:31]} g6 {[%emt 0:6:51]} 7. d4 {[%emt 0:0:23]} Bg4 {[%emt 0:6:25]} 8. dxe5 {[%emt 0:0:15]} Nxe5 {[%emt 0:11:2]} 9. Be2 {[%emt 0:0:9]} Qd7 {[%emt 0:6:26]} 10. Nc3 {[%emt 0:2:34]} Bg7 {[%emt 0:5:26]} 11. Be3 {[%emt 0:7:1]} Bxf3 {[%emt 0:10:39]} 12. Bxf3 {[%emt 0:0:2]} Nxf3+ {[%emt 0:1:26]} 13. Qxf3 {[%emt 0:0:3]} Ng4 {[%emt 0:0:11]} 14. Bd2 {[%emt 0:7:45]} O-O {[%emt 0:2:34]} 15. h3 {[%emt 0:5:19]} Ne5 {[%emt 0:0:11]} 16. Qe2 {[%emt 0:0:20]} Nc6 {[%emt 0:3:34]} 17. Nd5 {[%emt 0:6:27]} f5 {[%emt 0:6:42]} 18. Qc4 {[%emt 0:7:47]} Kh7 {[%emt 0:0:14]} 19. c3 {[%emt 0:0:50]} Rae8 {[%emt 0:6:22]} 20. f4 {[%emt 0:4:29]} fxe4 {[%emt 0:3:45]} 21. Rxe4 {[%emt 0:0:8]} b5 {[%emt 0:1:12]} 22. Qe2 {[%emt 0:6:55]} Rxe4 {[%emt 0:0:13]} 23. Qxe4 {[%emt 0:0:3]} Re8 {[%emt 0:0:18]} 24. Qd3 {[%emt 0:2:9]} Ne7 {[%emt 0:1:18]} 25. Nxe7 {[%emt 0:9:13]} Rxe7 {[%emt 0:0:6]} 26. Re1 {[%emt 0:0:26]} Rxe1+ {[%emt 0:1:30]} 27. Bxe1 {[%emt 0:0:1]} a6 {[%emt 0:8:40]} 28. b3 {[%emt 0:3:2]} Qf5 {[%emt 0:2:43]} 29. Qxf5 {[%emt 0:0:20]} gxf5 {[%emt 0:0:3]} 30. c4 {[%emt 0:2:38]} bxc4 {[%emt 0:0:50]} 31. bxc4 {[%emt 0:0:1]} h5 {[%emt 0:0:22]} 32. Kf2 {[%emt 0:0:29]} Kg6 {[%emt 0:0:8]} 33. Kf3 {[%emt 0:0:28]} Bd4 {[%emt 0:1:58]} 34. g4 {[%emt 0:1:9]} hxg4+ {[%emt 0:0:5]} 35. hxg4 {[%emt 0:0:4]} fxg4+ {[%emt 0:0:7]} 36. Kxg4 {[%emt 0:0:4]} c6 {[%emt 0:0:17]} 37. f5+ {[%emt 0:0:45]} Kf7 {[%emt 0:0:7]} 38. Kf4 {[%emt 0:0:46]} d5 {[%emt 0:0:16]} 39. cxd5 {[%emt 0:0:4]} cxd5 {[%emt 0:0:3]} 40. Ba5 {[%emt 0:0:30]} Kf6 {[%emt 0:0:21]} 41. Bd8+ {[%emt 0:30:40]} Kf7 {[%emt 0:30:6]} 42. Bc7 {[%emt 0:0:27]} Kf6 {[%emt 0:0:5]} 1/2-1/2